fUSD/lending_fUSD_20240617
["ID","MTS","AMOUNT","RATE_DAILY","PERIOD"]
[329748551,1718645452372,-1320.92,0.00021917,2]
[329748552,1718645452381,-658.13,0.00021917,2]
[329748553,1718645452390,-500.0,0.00021917,2]
[329748554,1718645452399,-2088.82,0.00021917,2]
[329748555,1718645452408,-500.0,0.00021917,2]
[329748556,1718645452417,-500.0,0.00021917,2]
[329748557,1718645452427,-4379.15,0.00021917,2]
[329748558,1718645452435,-500.0,0.00021917,2]
[329748559,1718645452445,-500.0,0.00021917,2]
[329748560,1718645452454,-500.0,0.00021917,2]
[329748561,1718645452463,-860.13,0.00021917,2]
[329748562,1718645452472,-25007.45,0.00021917,2]
[329748563,1718645452481,-500.0,0.00021917,2]
[329748564,1718645452490,-500.0,0.00021917,2]
[329748565,1718645452499,-825.21,0.00021917,2]
[329748566,1718645452508,-506.48807227,0.00021917,2]
[329748567,1718645452518,-1409.5,0.00021917,2]
[329748568,1718645452527,-525.85,0.00021917,2]
[329748569,1718645452537,-500.0,0.00021917,2]
[329748570,1718645452546,-808.12,0.00021917,2]
[329748571,1718645452555,-500.0,0.00021917,2]
[329748572,1718645452564,-500.0,0.00021917,2]
[329748573,1718645452573,-500.0,0.00021917,2]
[329748574,1718645452582,-500.0,0.00021917,2]
[329748575,1718645452591,-500.0,0.00021917,2]
[329748576,1718645452600,-1183.21,0.00021917,2]
[329748577,1718645452610,-500.0,0.00021917,2]
[329748578,1718645452619,-500.0,0.00021917,2]
[329748579,1718645452629,-500.0,0.00021917,2]
[329748580,1718645452638,-500.0,0.00021917,2]
[329748581,1718645452653,-37883.86,0.00021917,2]
[329748582,1718645452663,-12012.35,0.00021917,2]
[329748583,1718645452672,-500.0,0.00021917,2]
[329748584,1718645452682,-500.0,0.00021917,2]
[329748585,1718645452692,-1616.7,0.00021917,2]
[329748586,1718645452707,-5272.35,0.00021917,2]
[329748587,1718645452717,-624.85,0.00021917,2]
[329748588,1718645452726,-703.4,0.00021917,2]
[329748589,1718645452736,-529.96513419,0.00021917,2]
[329748590,1718645452747,-534.99,0.00021917,2]
[329748591,1718645452757,-513.6617674,0.00021917,2]
[329748592,1718645452767,-500.0,0.00021917,2]
[329748593,1718645452778,-500.0,0.00021917,2]
[329748594,1718645452787,-59050.85,0.00021917,2]
[329748595,1718645452796,-974.48,0.00021917,2]
[329748596,1718645452806,-500.0,0.00021917,2]
[329748597,1718645452816,-529.26,0.00021917,2]
[329748598,1718645452826,-4434.69,0.00021917,2]
[329748599,1718645452835,-500.0,0.00021917,2]
[329748600,1718645452845,-3963.09,0.00021917,2]
[329748601,1718645452855,-500.0,0.00021917,2]
[329748602,1718645452864,-500.0,0.00021917,2]
[329748603,1718645452875,-1855.25,0.00021917,2]
[329748604,1718645452885,-500.0,0.00021917,2]
[329748605,1718645452895,-500.0,0.00021917,2]
[329748606,1718645452904,-601.12597062,0.00021917,2]
[329748607,1718645452913,-612.82,0.00021917,2]
[329748608,1718645452923,-562.72,0.00021917,2]
[329748609,1718645452932,-624.81,0.00021917,2]
[329748610,1718645452941,-1587.13,0.00021917,2]
[329748611,1718645452951,-1841.75,0.00021917,2]
[329748612,1718645452961,-608.77,0.00021917,2]
[329748613,1718645452970,-1192.71,0.00021917,2]
[329748614,1718645452979,-448.32672689,0.00021917,2]
[329748615,1718645452989,-1445.81,0.00021917,2]
[329748616,1718645452998,-500.0,0.00021917,2]
[329748617,1718645453008,-500.0,0.00021917,2]
[329748618,1718645453017,-18914.97,0.00021917,2]
[329748619,1718645453027,-500.0,0.00021917,2]
[329748620,1718645453036,-500.0,0.00021917,2]
[329748621,1718645453046,-500.0,0.00021917,2]
[329748622,1718645453055,-500.40109807,0.00021917,2]
[329748623,1718645453066,-500.0,0.00021917,2]
[329748624,1718645453075,-500.0,0.00021917,2]
[329748625,1718645453085,-741.26,0.00021917,2]
[329748626,1718645453095,-500.0,0.00021917,2]
[329748627,1718645453104,-1073.41,0.00021917,2]
[329748628,1718645453114,-645.96,0.00021917,2]
[329748629,1718645453125,-939.78,0.00021917,2]
[329748630,1718645453134,-1407.83,0.00021917,2]
[329748631,1718645453143,-500.0,0.00021917,2]
[329748632,1718645453153,-500.0,0.00021917,2]
[329748633,1718645453163,-786.03,0.00021917,2]
[329748634,1718645453172,-799.02,0.00021917,2]
[329748635,1718645453181,-1360.09,0.00021917,2]
[329748636,1718645453191,-500.0,0.00021917,2]
[329748637,1718645453201,-2079.45,0.00021917,2]
[329748638,1718645453210,-500.0,0.00021917,2]
[329748639,1718645453220,-1017.34,0.00021917,2]
[329748640,1718645453229,-3085.36,0.00021917,2]
[329748641,1718645453239,-500.0,0.00021917,2]
[329748642,1718645453249,-10612.05,0.00021917,2]
[329748643,1718645453258,-521.5,0.00021917,2]
[329748644,1718645453267,-500.0,0.00021917,2]
[329748645,1718645453277,-1218.08,0.00021917,2]
[329748646,1718645453287,-2485.19,0.00021917,2]
[329748647,1718645453296,-500.0,0.00021917,2]
[329748648,1718645453306,-500.0,0.00021917,2]
[329748649,1718645453316,-904.45,0.00021917,2]
[329748650,1718645453325,-1331.75,0.00021917,2]
[329748651,1718645453335,-1520.49,0.00021917,2]
[329748652,1718645453344,-855.97,0.00021917,2]
[329748653,1718645453354,-619.92,0.00021917,2]
[329748654,1718645453363,-500.0,0.00021917,2]
[329748655,1718645453373,-585.03,0.00021917,2]
[329748656,1718645453383,-500.0,0.00021917,2]
[329748657,1718645453392,-500.0,0.00021917,2]
[329748658,1718645453402,-4071.23,0.00021917,2]
[329748659,1718645453411,-500.0,0.00021917,2]
[329748660,1718645453421,-740.3,0.00021917,2]
[329748661,1718645453431,-500.0,0.00021917,2]
[329748662,1718645453440,-522.79,0.00021917,2]
[329748663,1718645453450,-500.0,0.00021917,2]
[329748664,1718645453460,-999.95,0.00021917,2]
[329748665,1718645453469,-500.0,0.00021917,2]
[329748666,1718645453478,-500.0,0.00021917,2]
[329748667,1718645453488,-500.0,0.00021917,2]
[329748668,1718645453497,-500.0,0.00021917,2]
[329748669,1718645453506,-4917.34,0.00021917,2]
[329748670,1718645453516,-500.0,0.00021917,2]
[329748671,1718645453525,-500.0,0.00021917,2]
[329748672,1718645453535,-1051.62,0.00021917,2]
[329748673,1718645453544,-10429.87,0.00021917,2]
[329748674,1718645453554,-13610.27,0.00021917,2]
[329748675,1718645453564,-7259.72,0.00021917,2]
[329748676,1718645453574,-542.17,0.00021917,2]
[329748677,1718645453584,-6927.24,0.00021917,2]
[329748678,1718645453594,-500.0,0.00021917,2]
[329748679,1718645453604,-500.0,0.00021917,2]
[329748680,1718645453613,-513.47,0.00021917,2]
[329748681,1718645453624,-1116.45,0.00021917,2]
[329748682,1718645453633,-500.0,0.00021917,2]
[329748683,1718645453642,-500.0,0.00021917,2]
[329748684,1718645453652,-500.0,0.00021917,2]
[329748685,1718645453662,-637.94,0.00021917,2]
[329748686,1718645453672,-4399.3,0.00021917,2]
[329748687,1718645453682,-758.78,0.00021917,2]
[329748688,1718645453692,-591.23,0.00021917,2]
[329748689,1718645453706,-500.0,0.00021917,2]
[329748690,1718645453716,-1147.4,0.00021917,2]
[329748691,1718645453725,-500.0,0.00021917,2]
[329748692,1718645453735,-500.0,0.00021917,2]
[329748693,1718645453745,-4963.95,0.00021917,2]
[329748694,1718645453754,-500.0,0.00021917,2]
[329748695,1718645453764,-2396.78,0.00021917,2]
[329748696,1718645453774,-47111.45,0.00021917,2]
[329748697,1718645453786,-500.0,0.00021917,2]
[329748698,1718645453796,-500.0,0.00021917,2]
[329748699,1718645453806,-500.0,0.00021917,2]
[329748700,1718645453815,-1441.48,0.00021917,2]
[329748701,1718645453824,-500.0,0.00021917,2]
[329748702,1718645453834,-650.69,0.00021917,2]
[329748703,1718645453843,-638.86,0.00021917,2]
[329748704,1718645453853,-500.0,0.00021917,2]
[329748705,1718645454070,-634.17,0.00021917,2]
[329748706,1718645454080,-500.0,0.00021917,2]
[329748707,1718645454090,-500.0,0.00021917,2]
[329748708,1718645454099,-500.0,0.00021917,2]
[329748709,1718645454108,-9208.99,0.00021917,2]
[329748710,1718645454117,-500.0,0.00021917,2]
[329748711,1718645454128,-637.91,0.00021917,2]
[329748712,1718645454137,-968.0,0.00021917,2]
[329748713,1718645454147,-747.3,0.00021917,2]
[329748714,1718645454156,-1451.32,0.00021917,2]
[329748715,1718645454165,-500.0,0.00021917,2]
[329748716,1718645454175,-500.0,0.00021917,2]
[329748717,1718645454184,-500.0,0.00021917,2]
[329748718,1718645454193,-778.41,0.00021917,2]
[329748719,1718645454203,-705.94,0.00021917,2]
[329748720,1718645454212,-500.0,0.00021917,2]
[329748721,1718645454222,-2010.44,0.00021917,2]
[329748722,1718645454232,-500.0,0.00021917,2]
[329748723,1718645454241,-500.0,0.00021917,2]
[329748724,1718645454251,-500.0,0.00021917,2]
[329748725,1718645454260,-1199.65,0.00021917,2]
[329748726,1718645454270,-1178.05,0.00021917,2]
[329748727,1718645454279,-500.0,0.00021917,2]
[329748728,1718645454288,-500.0,0.00021917,2]
[329748729,1718645454298,-980.02,0.00021917,2]
[329748730,1718645454308,-500.0,0.00021917,2]
[329748731,1718645454317,-1918.88,0.00021917,2]
[329748732,1718645454326,-10813.28,0.00021917,2]
[329748733,1718645454335,-500.0,0.00021917,2]
[329748734,1718645454345,-9387.95,0.00021917,2]
[329748735,1718645454355,-2642.83,0.00021917,2]
[329748736,1718645454364,-501.9313617,0.00021917,2]
[329748737,1718645454374,-500.0,0.00021917,2]
[329748738,1718645454384,-1052.11,0.00021917,2]
[329748739,1718645454393,-642.59705017,0.00021917,2]
[329748740,1718645454403,-1112.12,0.00021917,2]
[329748741,1718645454412,-1112.12,0.00021917,2]
[329748742,1718645454422,-2922.98,0.00021917,2]
[329748743,1718645454431,-1112.12,0.00021917,2]
[329748744,1718645454440,-1112.12,0.00021917,2]
[329748745,1718645454449,-1112.12,0.00021917,2]
[329748746,1718645454459,-500.0,0.00021917,2]
[329748747,1718645454468,-1112.12,0.00021917,2]
[329748748,1718645454478,-1112.12,0.00021917,2]
[329748749,1718645454487,-500.0,0.00021917,2]
[329748750,1718645454496,-1112.12,0.00021917,2]
[329748751,1718645454506,-500.0,0.00021917,2]
[329748752,1718645454515,-500.0,0.00021917,2]
[329748753,1718645454524,-1112.12,0.00021917,2]
[329748754,1718645454533,-1112.12,0.00021917,2]
[329748755,1718645454542,-1045.69,0.00021917,2]
[329748756,1718645454552,-500.0,0.00021917,2]
[329748757,1718645454561,-500.0,0.00021917,2]
[329748758,1718645454570,-1112.12,0.00021917,2]
[329748759,1718645454579,-1112.12,0.00021917,2]
[329748760,1718645454589,-1112.12,0.00021917,2]
[329748761,1718645454599,-1112.12,0.00021917,2]
[329748762,1718645454608,-500.0,0.00021917,2]
[329748763,1718645454618,-500.0,0.00021917,2]
[329748764,1718645454628,-1112.12,0.00021917,2]
[329748765,1718645454637,-778.45,0.00021917,2]
[329748766,1718645454647,-1039.69,0.00021917,2]
[329748767,1718645454656,-500.0,0.00021917,2]
[329748768,1718645454665,-4691.54,0.00021917,2]
[329748769,1718645454675,-500.0,0.00021917,2]
[329748770,1718645454684,-13647.02,0.00021917,2]
[329748771,1718645454693,-1543.37,0.00021917,2]
[329748772,1718645454706,-510.1,0.00021917,2]
[329748773,1718645454715,-554.96,0.00021917,2]
[329748774,1718645454725,-500.0,0.00021917,2]
[329748775,1718645454734,-500.0,0.00021917,2]
[329748776,1718645454744,-500.0,0.00021917,2]
[329748777,1718645454753,-3706.54,0.00021917,2]
[329748778,1718645454761,-180.88545806,0.00021917,2]
[329748779,1718645454771,-4265.71,0.00021917,2]
[329748780,1718645454780,-500.0,0.00021917,2]
[329748781,1718645454792,-500.0,0.00021917,2]
[329748782,1718645454801,-9637.82,0.00021917,2]
[329748783,1718645454810,-1126.35,0.00021917,2]
[329748784,1718645454820,-1135.63,0.00021917,2]
[329748785,1718645454829,-500.0,0.00021917,2]
[329748786,1718645454839,-584.19,0.00021917,2]
[329748787,1718645454849,-742.94,0.00021917,2]
[329748788,1718645454858,-2124.32,0.00021917,2]
[329748789,1718645454867,-4887.48,0.00021917,2]
[329748790,1718645454879,-521.58,0.00021917,2]
[329748791,1718645454888,-2353.07,0.00021917,2]
[329748792,1718645454897,-3792.79,0.00021917,2]
[329748793,1718645454906,-11792.14,0.00021917,2]
[329748794,1718645454916,-3792.79,0.00021917,2]
[329748795,1718645454925,-3792.79,0.00021917,2]
[329748796,1718645454935,-855.9,0.00021917,2]
[329748797,1718645454945,-500.0,0.00021917,2]
[329748798,1718645454956,-3792.79,0.00021917,2]
[329748799,1718645454966,-3792.79,0.00021917,2]
[329748800,1718645454976,-3792.79,0.00021917,2]
[329748801,1718645454986,-3792.79,0.00021917,2]
[329748802,1718645454996,-3792.79,0.00021917,2]
[329748803,1718645455006,-736.72,0.00021917,2]
[329748804,1718645455017,-500.0,0.00021917,2]
[329748805,1718645455028,-500.0,0.00021917,2]
[329748806,1718645455038,-500.0,0.00021917,2]
[329748807,1718645455048,-699.03,0.00021917,2]
[329748808,1718645455059,-699.52,0.00021917,2]
[329748809,1718645455069,-814.03,0.00021917,2]
[329748810,1718645455079,-5592.62,0.00021917,2]
[329748811,1718645455089,-500.0,0.00021917,2]
[329748812,1718645455100,-653.86,0.00021917,2]
[329748813,1718645455110,-851.15,0.00021917,2]
[329748814,1718645455120,-500.0,0.00021917,2]
[329748815,1718645455134,-14303.11,0.00021917,2]
[329748816,1718645455143,-500.0,0.00021917,2]
[329748817,1718645455153,-500.0,0.00021917,2]
[329748818,1718645455166,-500.0,0.00021917,2]
[329748819,1718645455176,-1528.64,0.00021917,2]
[329748820,1718645455186,-859.27,0.00021917,2]
[329748821,1718645455196,-500.0,0.00021917,2]
[329748822,1718645455206,-2675.69,0.00021917,2]
[329748823,1718645455216,-500.0,0.00021917,2]
[329748824,1718645455227,-1604.23,0.00021917,2]
[329748825,1718645455237,-3956.23,0.00021917,2]
[329748826,1718645455247,-500.0,0.00021917,2]
[329748827,1718645455257,-500.0,0.00021917,2]
[329748828,1718645455267,-695.35,0.00021917,2]
[329748829,1718645455277,-500.0,0.00021917,2]
[329748830,1718645455286,-500.0,0.00021917,2]
[329748831,1718645455296,-710.78,0.00021917,2]
[329748832,1718645455306,-1388.18,0.00021917,2]
[329748833,1718645455316,-3419.56,0.00021917,2]
[329748834,1718645455325,-570.83,0.00021917,2]
[329748835,1718645455335,-500.0,0.00021917,2]
[329748836,1718645455344,-1137.33,0.00021917,2]
[329748837,1718645455353,-500.0,0.00021917,2]
[329748838,1718645455363,-938.62,0.00021917,2]
[329748839,1718645455375,-500.0,0.00021917,2]
[329748840,1718645455384,-500.0,0.00021917,2]
[329748841,1718645455393,-500.0,0.00021917,2]
[329748842,1718645455402,-500.0,0.00021917,2]
[329748843,1718645455411,-300.55748033,0.00021917,2]
[329748844,1718645455422,-500.0,0.00021917,2]
[329748845,1718645455431,-5818.02,0.00021917,2]
[329748846,1718645455440,-500.0,0.00021917,2]
[329748847,1718645455450,-500.0,0.00021917,2]
[329748848,1718645455458,-500.0,0.00021917,2]
[329748849,1718645455468,-500.0,0.00021917,2]
[329748850,1718645455477,-16120.66,0.00021917,2]
[329748851,1718645455487,-2127.16,0.00021917,2]
[329748852,1718645455496,-500.0,0.00021917,2]
[329748853,1718645455505,-500.0,0.00021917,2]
[329748854,1718645455515,-500.0,0.00021917,2]
[329748855,1718645455524,-530.27,0.00021917,2]
[329748856,1718645455533,-606.1,0.00021917,2]
[329748857,1718645455543,-500.0,0.00021917,2]
[329748858,1718645455552,-500.0,0.00021917,2]
[329748859,1718645455562,-500.0,0.00021917,2]
[329748860,1718645455571,-1196.33,0.00021917,2]
[329748861,1718645455581,-1893.48,0.00021917,2]
[329748862,1718645455591,-1023.66,0.00021917,2]
[329748863,1718645455600,-3950.38,0.00021917,2]
[329748864,1718645455609,-500.0,0.00021917,2]
[329748865,1718645455619,-1166.78,0.00021917,2]
[329748866,1718645455631,-500.0,0.00021917,2]
[329748867,1718645455640,-500.0,0.00021917,2]
[329748868,1718645455650,-500.0,0.00021917,2]
[329748869,1718645455659,-512.0533108,0.00021917,2]
[329748870,1718645455669,-500.0,0.00021917,2]
[329748871,1718645455678,-3660.21,0.00021917,2]
[329748872,1718645455687,-3751.12,0.00021917,2]
[329748873,1718645455700,-500.0,0.00021917,2]
[329748874,1718645455710,-500.0,0.00021917,2]
[329748875,1718645455719,-500.0,0.00021917,2]
[329748876,1718645455729,-502.92916353,0.00021917,2]
[329748877,1718645455738,-1274.58,0.00021917,2]
[329748878,1718645455748,-1098.15,0.00021917,2]
[329748879,1718645455757,-1628.54,0.00021917,2]
[329748880,1718645455767,-500.0,0.00021917,2]
[329748881,1718645455780,-500.0,0.00021917,2]
[329748882,1718645455790,-2115.43,0.00021917,2]
[329748883,1718645455800,-165.5869799,0.00021917,2]
[329748884,1718645455810,-901.68,0.00021917,2]
[329748885,1718645455819,-500.0,0.00021917,2]
[329748886,1718645455829,-500.0,0.00021917,2]
[329748887,1718645455839,-500.0,0.00021917,2]
[329748888,1718645455848,-500.0,0.00021917,2]
[329748889,1718645455859,-501.36826834,0.00021917,2]
[329748890,1718645455868,-500.0,0.00021917,2]
[329748891,1718645455882,-1360.03,0.00021917,2]
[329748892,1718645455892,-500.0,0.00021917,2]
[329748893,1718645455902,-11475.54,0.00021917,2]
[329748894,1718645455912,-4694.71,0.00021917,2]
[329748895,1718645455922,-179.25604148,0.00021917,2]
[329748896,1718645455932,-18533.05,0.00021917,2]
[329748897,1718645455942,-4329.64,0.00021917,2]
[329748898,1718645455952,-934.33,0.00021917,2]
[329748899,1718645455962,-461.10283215,0.00021917,2]
[329748900,1718645455971,-582.29386382,0.00021917,2]
[329748901,1718645455981,-4265.26,0.00021917,2]
[329748902,1718645455990,-5266.5,0.00021917,2]
[329748903,1718645456000,-500.0,0.00021917,2]
[329748904,1718645456010,-500.0,0.00021917,2]
[329748905,1718645456020,-4511.44,0.00021917,2]
[329748906,1718645456030,-500.0,0.00021917,2]
[329748907,1718645456040,-500.0,0.00021917,2]
[329748908,1718645456050,-985.91,0.00021917,2]
[329748909,1718645456059,-500.0,0.00021917,2]
[329748910,1718645456069,-500.0,0.00021917,2]
[329748911,1718645456079,-500.0,0.00021917,2]
[329748912,1718645456090,-500.0,0.00021917,2]
[329748913,1718645456100,-500.0,0.00021917,2]
[329748914,1718645456109,-8630.39,0.00021917,2]
[329748915,1718645456119,-500.0,0.00021917,2]
[329748916,1718645456132,-1262.06,0.00021917,2]
[329748917,1718645456142,-500.0,0.00021917,2]
[329748918,1718645456151,-4985.69,0.00021917,2]
[329748919,1718645456161,-500.0,0.00021917,2]
[329748920,1718645456171,-500.0,0.00021917,2]
[329748921,1718645456181,-500.0,0.00021917,2]
[329748922,1718645456190,-1113.84,0.00021917,2]
[329748923,1718645456200,-500.0,0.00021917,2]
[329748924,1718645456210,-1042.77,0.00021917,2]
[329748925,1718645456220,-500.0,0.00021917,2]
[329748926,1718645456229,-504.95756225,0.00021917,2]
[329748927,1718645456239,-500.0,0.00021917,2]
[329748928,1718645456248,-3940.04,0.00021917,2]
[329748929,1718645456258,-500.0,0.00021917,2]
[329748930,1718645456268,-500.0,0.00021917,2]
[329748931,1718645456277,-500.0,0.00021917,2]
[329748932,1718645456287,-793.08,0.00021917,2]
[329748933,1718645456296,-500.0,0.00021917,2]
[329748934,1718645456306,-3897.45,0.00021917,2]
[329748935,1718645456315,-306.94237916,0.00021917,2]
[329748936,1718645456324,-500.0,0.00021917,2]
[329748937,1718645456334,-511.83957088,0.00021917,2]
[329748938,1718645456343,-882.07,0.00021917,2]
[329748939,1718645456353,-659.74,0.00021917,2]
[329748940,1718645456362,-500.0,0.00021917,2]
[329748941,1718645456372,-1197.95,0.00021917,2]
[329748942,1718645456383,-1511.63,0.00021917,2]
[329748943,1718645456393,-500.0,0.00021917,2]
[329748944,1718645456402,-500.0,0.00021917,2]
[329748945,1718645456411,-500.0,0.00021917,2]
[329748946,1718645456421,-200.0,0.00021917,2]
[329748947,1718645456430,-982.83,0.00021917,2]
[329748948,1718645456439,-500.0,0.00021917,2]
[329748949,1718645456450,-432.62362864,0.00021917,2]
[329748950,1718645456459,-795.71,0.00021917,2]
[329748951,1718645456469,-370.96552847,0.00021917,2]
[329748952,1718645456479,-500.0,0.00021917,2]
[329748953,1718645456489,-1631.37,0.00021917,2]
[329748954,1718645456498,-1964.3,0.00021917,2]
[329748955,1718645456508,-500.0,0.00021917,2]
[329748956,1718645456518,-3601.95,0.00021917,2]
[329748957,1718645456527,-701.78,0.00021917,2]
[329748958,1718645456536,-500.0,0.00021917,2]
[329748959,1718645456545,-500.0,0.00021917,2]
[329748960,1718645456555,-3845.32,0.00021917,2]
[329748961,1718645456565,-1273.0,0.00021917,2]
[329748962,1718645456574,-1860.83,0.00021917,2]
[329748963,1718645456584,-500.0,0.00021917,2]
[329748964,1718645456593,-693.62,0.00021917,2]
[329748965,1718645456603,-503.90486175,0.00021917,2]
[329748966,1718645456612,-500.0,0.00021917,2]
[329748967,1718645456622,-500.0,0.00021917,2]
[329748968,1718645456633,-500.0,0.00021917,2]
[329748969,1718645456642,-2232.59,0.00021917,2]
[329748970,1718645456651,-500.0,0.00021917,2]
[329748971,1718645456661,-607.58,0.00021917,2]
[329748972,1718645456670,-973.25,0.00021917,2]
[329748973,1718645456679,-1849.57,0.00021917,2]
[329748974,1718645456688,-500.0,0.00021917,2]
[329748975,1718645456700,-500.0,0.00021917,2]
[329748976,1718645456716,-500.0,0.00021917,2]
[329748977,1718645456725,-639.04,0.00021917,2]
[329748978,1718645456735,-500.0,0.00021917,2]
[329748979,1718645456747,-4288.78,0.00021917,2]
[329748980,1718645456756,-500.0,0.00021917,2]
[329748981,1718645456766,-1164.63,0.00021917,2]
[329748982,1718645456776,-500.0,0.00021917,2]
[329748983,1718645456787,-2909.24,0.00021917,2]
[329748984,1718645456797,-913.41,0.00021917,2]
[329748985,1718645456806,-500.0,0.00021917,2]
[329748986,1718645456815,-500.0,0.00021917,2]
[329748987,1718645456824,-500.0,0.00021917,2]
[329748988,1718645456834,-500.0,0.00021917,2]
[329748989,1718645456844,-11339.67,0.00021917,2]
[329748990,1718645456853,-500.0,0.00021917,2]
[329748991,1718645456863,-7733.03,0.00021917,2]
[329748992,1718645456872,-1113.28,0.00021917,2]
[329748993,1718645456884,-925.72,0.00021917,2]
[329748994,1718645456893,-500.0,0.00021917,2]
[329748995,1718645456902,-973.05,0.00021917,2]
[329748996,1718645456912,-500.0,0.00021917,2]
[329748997,1718645456921,-500.0,0.00021917,2]
[329748998,1718645456930,-500.0,0.00021917,2]
[329748999,1718645456940,-1281.44,0.00021917,2]
[329749000,1718645456950,-500.0,0.00021917,2]
[329749001,1718645456959,-500.0,0.00021917,2]
[329749002,1718645457143,-500.0,0.00021917,2]
[329749003,1718645457154,-500.0,0.00021917,2]
[329749004,1718645457163,-835.77,0.00021917,2]
[329749005,1718645457173,-1541.25,0.00021917,2]
[329749006,1718645457183,-500.0,0.00021917,2]
[329749007,1718645457193,-500.0,0.00021917,2]
[329749008,1718645457203,-684.32,0.00021917,2]
[329749009,1718645457213,-500.0,0.00021917,2]
[329749010,1718645457223,-1335.28,0.00021917,2]
[329749011,1718645457232,-903.98,0.00021917,2]
[329749012,1718645457242,-745.9,0.00021917,2]
[329749013,1718645457251,-500.0,0.00021917,2]
[329749014,1718645457260,-500.0,0.00021917,2]
[329749015,1718645457269,-232.16886119,0.00021917,2]
[329749016,1718645457278,-500.0,0.00021917,2]
[329749017,1718645457288,-588.05,0.00021917,2]
[329749018,1718645457297,-140207.0,0.00021918,2]
[329749019,1718645457306,-250.0,0.00021918,2]
[329749020,1718645457316,-251.31,0.00021918,2]
[329749021,1718645457325,-4080.0,0.00021918,2]
[329749022,1718645457334,-176.514947,0.00021918,2]
[329749023,1718645457343,-203.67916362,0.00021923,2]
[329749024,1718645457352,-3492.0,0.00021966,2]
[329749025,1718645457361,-71313.35939646,0.00021991,2]
[329749026,1718645458033,-500.0,0.00021917,2]
[329749027,1718645458043,-1275.30130806,0.00021991,2]
[329749028,1718645459242,-191.77261492,0.00021907,2]
[329749029,1718645459251,-502.85738508,0.00021917,2]
[329749030,1718645459263,-239.12261492,0.00021917,2]
[329749031,1718645459272,-260.87738508,0.00021991,2]
[329749032,1718645459284,-1013.51678967,0.00021991,2]
[329749033,1718645459314,-631.34941224,0.00021991,2]
[329749034,1718645459326,-281.92942,0.00021991,2]
[329749035,1718645459337,-2061.611112,0.00021991,2]
[329749036,1718645459358,-151112.22943728,0.00021991,2]
[329749037,1718645459369,-2974.06626,0.00021991,2]
[329749038,1718645459403,-26340.10825471,0.00021991,2]
[329749039,1718645459415,-1161.13185241,0.00021991,2]
[329749040,1718645459426,-1938.14415443,0.00021991,2]
[329749041,1718645459436,-8156.58744458,0.00021991,2]
[329749042,1718645459448,-41560.11771104,0.00021991,2]
[329749043,1718645459459,-648.14925961,0.00021991,2]
[329749045,1718645645579,1223.58816666,0.000118,2]
[329749047,1718645790511,1362.97468143,0.000118,2]
[329749049,1718645800685,5193.7191832,0.000118,2]
[329749050,1718645801498,1064.19638756,0.00027,60]
[329749051,1718645836998,209.85558815,0.0001,2]
[329749052,1718645838598,2555.49409125,8.85e-05,2]
[329749053,1718645838678,7543.83477601,0.000118,2]